[Event "Czech Championship U20 Open 2023"]
[Site "Jaromerice nad Rokytnou"]
[Date "2023.03.15"]
[Round "7.1"]
[White "Hrbek, Stepan"]
[Black "Hlavina, Matous"]
[Result "1-0"]
[ECO "D10"]
[WhiteElo "2340"]
[BlackElo "2091"]
[Annotator "TA"]
[PlyCount "77"]
[EventDate "2023.03.10"]
[EventType "tourn"]
[EventCountry "CZE"]
[SourceTitle "playchess.com"]
[Source "ChessBase"]
[SourceQuality "1"]
[TimeControl "40/5400+30:1800+30"]

{[%evp 9,77,0,25,27,27,25,45,40,37,38,43,42,48,26,45,50,45,49,237,242,233,215,235,241,229,179,244,242,217,203,278,259,427,422,621,620,616,614,583,564,557,382,387,362,362,362,602,602,602,602,602,602,602,602,602,602,587,525,606,606,5387,4512,29962,29967,29969,29971,29974,29973,29972,29972]} 1. c4 {[%emt 0:00:04]} c6 {[%emt 0:01:20]} 2. d4 {[%emt 0:01:15]} d5 {[%emt 0:00:10]} 3. cxd5 {[%emt 0:00:23]} cxd5 {[%emt 0:00:22]} 4. Bg5 {[%emt 0:00:37]} Nc6 {[%emt 0:01:48]} 5. Nc3 {[%emt 0:00:03]} Nf6 {[%emt 0:01:23]} 6. Bxf6 {[%emt 0:03:06] D10: Slav Defence: 3 cxd5 (without early Nf3) and 3 Nc3.} exf6 {[%emt 0:01:31]} 7. e3 {[%emt 0:00:29]} Bb4 {[%emt 0:11:41]} 8. Nge2 {[%emt 0:04:26] White is slightly better.} Bg4 {[%emt 0:03:14]} 9. Qb3 {[%emt 0:02:07]} O-O {[%emt 0:09:49]} 10. a3 {[%emt 0:06:19] [#]} Ba5 $146 {[%emt 0:10:38]} ({Predecessor:} 10... Bxe2 11. Bxe2 Bxc3+ 12. Qxc3 Re8 13. O-O Qd6 14. Bf3 Rac8 15. Qb3 Red8 16. Qxb7 Rb8 {0-1 Orfanidis,K (1819)-Papachristopoulos,G (1658) GRE-ch Online Blitz op 1st 2021 (7)}) 11. h3 {[%emt 0:08:00]} Bxe2 {[%emt 0:07:37]} 12. Bxe2 {[%emt 0:00:08]} Re8 {[%emt 0:00:39]} 13. O-O {[%emt 0:00:29]} (13. Qxb7 Nxd4 14. exd4 Rb8 15. Qxa7 Rxb2 $15) 13... Nxd4 $2 {[%emt 0:02:29] [#] This costs Black the game.} 14. exd4 $18 {[%emt 0:00:08] Bg4 is the strong threat.} Bxc3 {[%emt 0:00:09]} 15. Bb5 {[%emt 0:00:41][%cal Ob5e8]} Bxd4 {[%emt 0:00:05]} 16. Bxe8 {[%emt 0:00:40]} Qxe8 {[%emt 0:00:01]} 17. Rfe1 {[%emt 0:08:39]} (17. Qxb7 $6 Rb8 18. Qxd5 Bxb2 $16) 17... Qc6 {[%emt 0:01:28]} (17... Be5 $142) 18. Rad1 {[%emt 0:00:25]} Be5 {[%emt 0:01:27]} 19. Rxd5 {[%emt 0:00:57]} h6 {[%emt 0:01:28]} 20. Red1 {[%emt 0:00:32][%cal Be1d1,Bd1d8,Bd8a8,Ba8e8,Be8e6,Be6b6,Bb6b5][%mdl 32] aiming for Rd7.} Rc8 $2 {[%emt 0:01:14] [#]} (20... b6 21. Rd7 (21. Rd8+ Rxd8 22. Rxd8+ Kh7 $18) 21... Qe6 22. Qxe6 fxe6) 21. Rd7 {[%emt 0:01:46]} (21. Rd8+ Rxd8 22. Rxd8+ Kh7 23. Qd3+ (23. Qxf7 $2 Qc1+) 23... g6 $18) 21... Qe6 {[%emt 0:01:05]} (21... Qc4 $142 22. Qxc4 Rxc4 23. Rxb7 h5 24. Rd8+ Kh7) 22. Rd8+ {[%emt 0:02:43]} Rxd8 {[%emt 0:01:40]} 23. Rxd8+ {[%emt 0:00:08]} Kh7 {[%emt 0:00:04]} 24. Qxe6 {[%emt 0:00:08]} ({Not} 24. Qxb7 Bd4 25. Qb4 (25. Rxd4 Qe1+ 26. Kh2 Qe5+ 27. g3 Qxd4 $11) 25... Bb6 $18) 24... fxe6 {[%emt 0:00:06][%mdl 4096] Endgame KR-KB} 25. b3 {[%emt 0:00:18]} b6 {[%emt 0:01:02]} 26. Ra8 {[%emt 0:05:40]} a5 {[%emt 0:01:04]} 27. Re8 {[%emt 0:00:07]} Bb2 $2 {[%emt 0:00:51]} (27... Bd4 28. Rxe6 Kg6) 28. Rxe6 {[%emt 0:00:08]} Bxa3 {[%emt 0:00:20]} 29. Rxb6 {[%emt 0:00:08]} Kg6 {[%emt 0:00:12]} 30. Rb5 {[%emt 0:00:18]} Bb4 {[%emt 0:00:02]} 31. g4 {[%emt 0:00:41]} Kf7 {[%emt 0:01:19]} 32. Rb7+ {[%emt 0:02:29]} Kg6 {[%emt 0:00:11]} 33. h4 {[%emt 0:03:33]} h5 {[%emt 0:00:36]} 34. gxh5+ {[%emt 0:00:07]} Kxh5 {[%emt 0:00:01]} 35. Rxg7 {[%emt 0:00:11]} Kxh4 {[%emt 0:00:02]} 36. Kg2 {[%emt 0:00:15] White mates.} Kh5 {[%emt 0:00:17]} 37. Kf3 {[%emt 0:00:33]} Kh6 {[%emt 0:00:10]} 38. Rg2 {[%emt 0:00:12]} Bc3 {[%emt 0:00:25]} 39. Ke4 {Weighted Error Value: White=0.08 (flawless) /Black=0.63} 1-0

[Event "Czech Championship U20 Open 2023"]
[Site "Jaromerice nad Rokytnou"]
[Date "2023.03.15"]
[Round "7.2"]
[White "Jun, Rudolf"]
[Black "Ocelak, Jakub"]
[Result "1/2-1/2"]
[ECO "C01"]
[WhiteElo "2152"]
[BlackElo "2190"]
[Annotator "TA"]
[PlyCount "60"]
[EventDate "2023.03.10"]
[EventType "tourn"]
[EventCountry "CZE"]
[SourceTitle "playchess.com"]
[Source "ChessBase"]
[SourceQuality "1"]
[TimeControl "40/5400+30:1800+30"]

{[%evp 11,60,0,5,0,11,11,12,8,20,0,7,0,18,17,46,23,27,13,0,0,8,0,24,4,22,10,6,0,4,0,7,1,15,15,15,8,31,0,0,-6,6,0,0,0,12,0,34,63,53,56,51]} 1. e4 {[%emt 0:00:03]} e6 {[%emt 0:00:03]} 2. d4 {[%emt 0:01:16]} d5 {[%emt 0:00:03]} 3. exd5 {[%emt 0:01:38]} exd5 {[%emt 0:00:02]} 4. Bd3 {[%emt 0:00:31]} Nc6 {[%emt 0:01:13]} 5. c3 {[%emt 0:00:58]} Bd6 {[%emt 0:00:09]} 6. h3 {[%emt 0:01:24]} Nge7 {[%emt 0:04:07]} 7. Ne2 {[%emt 0:03:09] C01: French: Exchange Variation.} O-O {[%emt 0:11:22]} 8. O-O {[%emt 0:00:09]} Bf5 {[%emt 0:00:42]} 9. Bf4 {[%emt 0:01:16] The position is equal.} Bxd3 {[%emt 0:04:16]} 10. Qxd3 {[%emt 0:00:25]} Ng6 {[%emt 0:00:09]} 11. Bg3 {[%emt 0:00:33] [#]} a6 $146 {[%emt 0:06:57]} ({Predecessor:} 11... Bxg3 12. Nxg3 Re8 13. Nd2 Qd7 14. Nf3 a5 15. b3 b6 16. Rae1 Rxe1 17. Rxe1 Re8 18. Rxe8+ Qxe8 19. Qe2 Qxe2 20. Nxe2 {½-½ Hannewald,A (1386)-Kirschbaum,A (1332) SJNR-ch U16 Kranenburg 2005 (3)}) 12. Nd2 {[%emt 0:01:17]} Qd7 {[%emt 0:04:50]} 13. Rfe1 {[%emt 0:01:51]} (13. f4 $5 {[%cal Rf4f5]}) 13... Rae8 {[%emt 0:00:45]} 14. Qf3 {[%emt 0:02:53]} Bxg3 {[%emt 0:06:48]} 15. Nxg3 {[%emt 0:00:54]} Re6 {[%emt 0:01:13]} 16. Re3 {[%emt 0:11:10]} Rfe8 {[%emt 0:00:33]} 17. Rae1 {[%emt 0:00:34]} Rxe3 {[%emt 0:02:12]} 18. Rxe3 {[%emt 0:00:52]} Rxe3 {[%emt 0:00:41]} 19. fxe3 {[%emt 0:01:33][%cal Bf2e3,Be3e4,Be4e5][%mdl 32]} Nce7 {[%emt 0:06:31]} 20. e4 {[%emt 0:01:57]} Qe6 {[%emt 0:06:44]} 21. Kh2 {[%emt 0:05:30]} Kf8 {[%emt 0:07:04]} 22. b3 {[%emt 0:03:21]} Qd6 {[%emt 0:04:29]} 23. e5 {[%emt 0:01:25]} Qe6 {[%emt 0:00:11][%cal Oc7c5]} 24. c4 {[%emt 0:02:26]} Kg8 {[%emt 0:01:27]} 25. Qc3 {[%emt 0:03:36]} Nc6 {[%emt 0:02:34]} 26. Nf3 {[%emt 0:01:07]} h6 {[%emt 0:00:25]} 27. Nf1 {[%emt 0:01:29]} Nge7 {[%emt 0:02:26]} 28. Ne3 {[%emt 0:00:46]} Qd7 {[%emt 0:01:29]} 29. Kg1 {[%emt 0:04:04]} Qe6 {[%emt 0:00:07]} 30. Kf2 {[%emt 0:00:51]} Kh8 {[%emt 0:00:17] Weighted Error Value: White=0.07 (flawless) /Black=0.09 (flawless)} 1/2-1/2

[Event "Czech Championship U20 Open 2023"]
[Site "Jaromerice nad Rokytnou"]
[Date "2023.03.15"]
[Round "7.3"]
[White "Kubiczek, Michal"]
[Black "Mach, Petr"]
[Result "0-1"]
[ECO "D71"]
[WhiteElo "2087"]
[BlackElo "2167"]
[Annotator "TA"]
[PlyCount "50"]
[EventDate "2023.03.10"]
[EventType "tourn"]
[EventCountry "CZE"]
[SourceTitle "playchess.com"]
[Source "ChessBase"]
[SourceQuality "1"]
[TimeControl "40/5400+30:1800+30"]

{[%evp 15,50,12,50,32,33,32,29,15,13,2,30,21,21,-40,18,-61,0,-51,51,53,52,53,58,57,92,-301,-304,-545,-543,-519,-509,-898,-900,-831,-853,-859,-851]} 1. d4 {[%emt 0:00:05]} Nf6 {[%emt 0:03:15]} 2. c4 {[%emt 0:00:36]} g6 {[%emt 0:00:11]} 3. g3 {[%emt 0:00:35]} Bg7 {[%emt 0:00:32]} 4. Bg2 {[%emt 0:00:33]} O-O {[%emt 0:00:19]} 5. Nc3 {[%emt 0:00:53]} d6 {[%emt 0:00:19]} 6. e3 {[%emt 0:00:51]} e5 {[%emt 0:08:22]} 7. Nge2 {[%emt 0:00:27]} Nc6 {[%emt 0:12:06]} 8. O-O {[%emt 0:06:44]} Nd7 {[%emt 0:04:07]} 9. d5 {[%emt 0:11:25] E61: King's Indian: Early deviations for White, including Smyslov System.} Ne7 {[%emt 0:00:05]} 10. e4 {[%emt 0:00:24]} f5 {[%emt 0:00:28]} 11. Be3 {[%emt 0:07:30] White has an edge.} Nf6 {[%emt 0:04:10]} 12. f3 {[%emt 0:02:07]} h6 {[%emt 0:02:33] [#]} 13. b4 $146 {[%emt 0:02:48]} ({Predecessor:} 13. Kh1 g5 14. c5 Ng6 15. cxd6 cxd6 16. Rc1 Bd7 17. Qb3 Ne8 18. Qxb7 Rb8 19. Qxa7 Rxb2 {1-0 Garcia Fernandez,J (2095)-Cobiella Rodriguez,J Infiesto op 1996 (5)}) 13... g5 {[%emt 0:01:47]} 14. Qd2 {[%emt 0:08:41]} (14. exf5 $11 Bxf5 15. Qd2) 14... a6 {[%emt 0:12:57]} (14... f4 $15 15. Bf2 Ng6) 15. a4 {[%emt 0:02:52]} (15. exf5 $11 Nxf5 16. Bf2) 15... Qe8 {[%emt 0:01:35]} (15... f4 $15 16. Bf2 Ng6) 16. c5 {[%emt 0:01:45]} ({White should try} 16. exf5 $11 Bxf5 17. Ne4) 16... fxe4 {[%emt 0:04:34]} (16... f4 $15 17. Bf2 Qh5) 17. fxe4 $14 {[%emt 0:01:34]} Qh5 {[%emt 0:00:06]} 18. Kh1 $1 {[%emt 0:09:02]} Bd7 {[%emt 0:04:17]} 19. Bg1 {[%emt 0:08:06]} Rf7 {[%emt 0:01:14] [#]} 20. Nd1 $2 {[%emt 0:05:49][%mdl 8192] Now White is beyond hope.} (20. Nc1 $1 $16 {and life is bright.}) 20... Nxe4 $1 $19 {[%emt 0:04:01][%mdl 64] Deflection} 21. Qe3 {[%emt 0:04:59]} (21. Qe1 {was worth a try.} Rxf1 22. Bxf1) 21... Rxf1 {[%emt 0:01:02] Black is clearly winning.} (21... Nxd5 22. Qxe4 Rxf1 23. Bxf1 $11 (23. Qxd5+ Kh8 $11)) 22. Bxf1 {[%emt 0:00:21]} Bg4 {[%emt 0:05:00] Hoping for ...Nf5.} ({Weaker is} 22... Nxd5 23. Qxe4 Nf4 24. Nxf4 (24. gxf4 $2 {loses.} Bc6 $19) 24... exf4 25. Qc4+ (25. Qxb7 Re8 $17) 25... Kf8 26. Bd4 Bxd4 27. Qxd4 fxg3 28. Ra2 $11 (28. cxd6 $2 Qxh2#)) 23. Bf2 {[%emt 0:09:25]} (23. Ra3 $142 Rf8 24. Qxe4 Rxf1 25. Nf2 Bxe2 26. g4 Bxg4 27. Qxg4 Qxg4 28. Nxg4) 23... Nf5 {[%emt 0:08:19]} 24. Qd3 {[%emt 0:01:53]} Nxf2+ {[%emt 0:00:18]} 25. Nxf2 {[%emt 0:00:22] [#]} e4 $1 {[%mdl 576] Discovered Attack.   Weighted Error Value: White=0.93/Black=0.23 (precise)} 0-1

[Event "Czech Championship U20 Open 2023"]
[Site "Jaromerice nad Rokytnou"]
[Date "2023.03.15"]
[Round "7.4"]
[White "Frank, Adam"]
[Black "Jares, Michal"]
[Result "1-0"]
[ECO "B76"]
[WhiteElo "2391"]
[BlackElo "2177"]
[Annotator "TA"]
[PlyCount "117"]
[EventDate "2023.03.10"]
[EventType "tourn"]
[EventCountry "CZE"]
[SourceTitle "playchess.com"]
[Source "ChessBase"]
[SourceQuality "1"]
[TimeControl "40/5400+30:1800+30"]

{[%evp 29,117,63,75,54,47,49,47,47,50,34,41,33,53,49,62,72,68,66,63,58,88,85,87,89,118,118,162,165,217,214,314,317,321,297,459,325,316,283,386,350,328,311,312,271,296,293,282,274,299,287,444,441,569,581,514,498,564,535,531,331,660,619,1202,1253,2039,2210,1962,2210,2140,2098,1954,1914,1744,1447,29967,29969,29967,29969,29968,29968,29984,29985,29984,29984,29988,29989,29989,29989,29989,29989]} 1. e4 {[%emt 0:00:07]} c5 {[%emt 0:00:01]} 2. Nf3 {[%emt 0:00:07]} d6 {[%emt 0:00:24]} 3. d4 {[%emt 0:00:05]} cxd4 {[%emt 0:00:02]} 4. Nxd4 {[%emt 0:00:04]} Nf6 {[%emt 0:00:12]} 5. Nc3 {[%emt 0:00:03]} g6 {[%emt 0:00:09]} 6. Be3 {[%emt 0:00:08]} Bg7 {[%emt 0:00:09]} 7. f3 {[%emt 0:00:04]} O-O {[%emt 0:00:14]} 8. Qd2 {[%emt 0:00:02]} Nc6 {[%emt 0:00:12]} 9. O-O-O {[%emt 0:00:05]} d5 {[%emt 0:00:08]} 10. exd5 {[%emt 0:00:44]} Nxd5 {[%emt 0:00:04]} 11. Nxc6 {[%emt 0:00:05]} bxc6 {[%emt 0:00:10]} 12. Bd4 {[%emt 0:00:03]} e5 {[%emt 0:00:24]} 13. Bc5 {[%emt 0:00:03]} Be6 {[%emt 0:00:09]} 14. Ne4 {[%emt 0:00:04]} Re8 {[%emt 0:00:11]} 15. h4 {[%emt 0:00:05]} Nf4 {[%emt 0:00:22]} 16. g3 {[%emt 0:00:11] B76: Sicilian Dragon: Yugoslav Attack, 9 g4 and 9 0-0-0.} (16. Qe1 {feels hotter.} Bd5 17. h5 f5 18. hxg6 fxe4 19. fxe4 Qg5 20. Be3) 16... Qxd2+ {[%emt 0:00:12]} 17. Rxd2 {[%emt 0:00:03]} Nh5 {[%emt 0:00:20]} 18. g4 {[%emt 0:00:02][%cal Bg3g4,Bg4g5,Bg5f6][%mdl 32] White is slightly better.} Nf4 {[%emt 0:00:06]} 19. g5 {[%emt 0:00:03]} Bd5 {[%emt 0:02:42] [#]} 20. Bd3 $146 {[%emt 0:06:53]} ({Predecessor:} 20. c4 Bxe4 21. fxe4 Ne6 22. Be3 Nd4 23. Bh3 Rab8 24. Rf1 Rb4 25. b3 Rb7 26. Bg4 {0-1 Reis,C (2273)-Santhosh,M David Lodge mem email 2000}) 20... Red8 {[%emt 0:20:05]} 21. Rhd1 {[%emt 0:19:38]} Ne6 {[%emt 0:10:35] White must now prevent ...Bxe4.} 22. Be7 {[%emt 0:03:54]} Re8 {[%emt 0:01:28]} 23. Nf6+ {[%emt 0:13:22]} Bxf6 {[%emt 0:01:43]} 24. gxf6 {[%emt 0:00:04]} Bxf3 {[%emt 0:13:32] Black is on the road to losing.} (24... Bxa2 $2 25. b3 $18) 25. Re1 {[%emt 0:00:04]} Nf4 {[%emt 0:15:49]} 26. Rxe5 {[%emt 0:01:20]} Nd5 {[%emt 0:03:20]} 27. Bc4 {[%emt 0:16:16] White is more active.} Nb6 {[%emt 0:02:57]} 28. Bf1 {[%emt 0:02:51] This pair of bishops is nice. Black is weak on the dark squares} Rab8 {[%emt 0:03:18]} (28... a5 {keeps fighting.} 29. Re3 Bd5) 29. b3 $18 {[%emt 0:00:58]} Nd5 {[%emt 0:07:18] [#]} (29... h5 {might work better.} 30. Bh3 Bg4) 30. Bh3 $1 {[%emt 0:01:10]} Nb6 {[%emt 0:07:14]} 31. c4 {[%emt 0:03:30]} Rb7 {[%emt 0:01:08]} (31... h5 {was necessary.} 32. Rd4 Bh1) 32. Kc2 {[%emt 0:03:22]} h5 {[%emt 0:01:07]} 33. Kc3 {[%emt 0:01:01]} Kh7 {[%emt 0:03:08]} 34. Rd4 {[%emt 0:01:06]} Kh6 {[%emt 0:01:22]} 35. a4 {[%emt 0:02:32]} Bg4 {[%emt 0:01:09]} 36. Bxg4 {[%emt 0:00:36]} hxg4 {[%emt 0:00:02]} 37. Rxg4 {[%emt 0:00:26]} Nd7 {[%emt 0:01:38]} 38. Reg5 {[%emt 0:02:27]} Reb8 {[%emt 0:01:15]} 39. b4 {[%emt 0:00:12][%cal Bb3b4,Bb4b5,Bb5b6][%mdl 32]} c5 {[%emt 0:01:27]} (39... Nf8 {was worth a try.} 40. Bxf8+ Rxf8) 40. b5 {[%emt 0:00:05]} ({Not} 40. bxc5 Rb2 41. Rg2 (41. c6 R8b3+ 42. Kd4 Rd2+ 43. Ke4 Re2+ 44. Kf4 Rf2+ 45. Ke4 Re2+ 46. Kd4 Rd2+ 47. Ke4 Re2+ $11) 41... Rb1 $18) (40. Bxc5 Nxf6 41. Rf4 Nh7 $18) 40... Rb6 {[%emt 0:01:54]} 41. Rf4 {[%emt 0:35:42]} Re6 {[%emt 0:03:45]} 42. a5 {[%emt 0:00:00]} a6 {[%emt 0:09:37]} 43. b6 {[%emt 0:00:00]} Re3+ {[%emt 0:00:59]} 44. Kd2 {[%emt 0:00:00]} Rh3 {[%emt 0:00:14]} (44... Ra3 45. Bxc5 Rxa5 46. Bf8+ {[%mdl 64] Discovered Attack} Nxf8 47. Rxa5 Ne6) 45. Bxc5 {[%emt 0:00:00]} Rxh4 {[%emt 0:01:07]} 46. Rd5 {[%emt 0:00:00][%cal Rf4h4]} Rh2+ {[%emt 0:04:06]} 47. Rf2 {[%emt 0:00:00]} Rxf2+ {[%emt 0:01:17]} 48. Bxf2 {[%emt 0:00:00]} Nxf6 {[%emt 0:00:15][%mdl 4096] Endgame KRB-KRN} 49. Be3+ {[%emt 0:00:00]} Kh7 {[%emt 0:00:37]} 50. Rd4 {[%emt 0:00:00]} Re8 {[%emt 0:02:42]} 51. Bf4 {[%emt 0:00:00]} g5 {[%emt 0:02:19]} 52. Bxg5 {[%emt 0:00:00] White mates.} Ne4+ {[%emt 0:00:51] [#]} 53. Rxe4 $1 {[%emt 0:00:00][%mdl 512]} Rxe4 {[%emt 0:00:10] KR-KB} 54. b7 {[%emt 0:00:00]} Re8 {[%emt 0:00:46]} 55. c5 {[%emt 0:00:00]} Kg6 {[%emt 0:00:25] [#]} 56. c6 $1 {[%emt 0:00:00]} Kxg5 {[%emt 0:00:25]} (56... Rb8 57. Bf4) 57. c7 {[%emt 0:00:00]} Re5 {[%emt 0:00:20]} 58. c8=Q {[%emt 0:00:00]} Rd5+ {[%emt 0:00:11]} 59. Ke3 {[%emt 0:00:00] Weighted Error Value: White=0.17 (very precise) /Black=0.50} 1-0